lending/lending_fUSD_20240124
["ID","MTS","AMOUNT","RATE_DAILY","PERIOD"]
[312647728,1706128255948,-500.0,0.00049315,31]
[312647729,1706128255957,-500.0,0.00049315,31]
[312647730,1706128255967,-500.0,0.00049315,31]
[312647731,1706128255976,-500.0,0.00049315,31]
[312647732,1706128255985,-500.0,0.00049315,31]
[312647733,1706128255994,-500.0,0.00049315,31]
[312647734,1706128256003,-500.0,0.00049315,31]
[312647735,1706128256012,-500.0,0.00049315,31]
[312647736,1706128256022,-500.0,0.00049315,31]
[312647737,1706128256031,-500.0,0.00049315,31]
[312647738,1706128256041,-500.0,0.00049315,31]
[312647739,1706128256051,-500.0,0.00049315,31]
[312647740,1706128256060,-307.18597631,0.00049315,31]
[312647741,1706128256096,-192.81402369,0.00049315,31]
[312647742,1706128256105,-379.63393627,0.00049315,31]
[312647743,1706128256121,-120.36606373,0.00049315,31]
[312647744,1706128256131,-500.0,0.00049315,31]
[312647745,1706128256142,-500.0,0.00049315,31]
[312647746,1706128256154,-500.0,0.00049315,31]
[312647747,1706128256163,-529.30499636,0.00049315,31]
[312647748,1706128256173,-500.0,0.00049315,31]
[312647749,1706128256183,-500.0,0.00049315,31]
[312647750,1706128256192,-729.45,0.00049315,31]
[312647751,1706128256202,-595.05,0.00049315,31]
[312647752,1706128256211,-500.0,0.00049315,31]
[312647753,1706128256221,-500.0,0.00049315,31]
[312647754,1706128256231,-500.0,0.00049315,31]
[312647755,1706128256240,-500.0,0.00049315,31]
[312647756,1706128256249,-500.0,0.00049315,31]
[312647757,1706128256259,-1287.31,0.00049315,7]
[312647758,1706128256268,-500.0,0.00049315,31]
[312647759,1706128256277,-500.0,0.00049315,31]
[312647760,1706128256286,-500.0,0.00049315,31]
[312647761,1706128256296,-547.48738559,0.00049315,31]
[312647762,1706128256305,-500.0,0.00049315,31]
[312647763,1706128256315,-500.0,0.00049315,31]
[312647764,1706128256325,-500.0,0.00049315,31]
[312647765,1706128256335,-500.0,0.00049315,31]
[312647766,1706128256348,-500.0,0.00049315,31]
[312647767,1706128256358,-500.0,0.00049315,31]
[312647768,1706128256367,-500.0,0.00049315,31]
[312647769,1706128256376,-212.31381516,0.00049315,31]
[312647770,1706128256391,-359.53618484,0.00049315,31]
[312647771,1706128256400,-500.0,0.00049315,31]
[312647772,1706128256412,-166.36310482,0.00049315,31]
[312647773,1706128256422,-500.0,0.00049315,31]
[312647774,1706128256431,-500.0,0.00049315,31]
[312647775,1706128256443,-588.58,0.00049315,31]
[312647776,1706128256454,-761.15,0.00049315,2]
[312647777,1706128256464,-572.66,0.00049315,31]
[312647778,1706128256475,-500.0,0.00049315,31]
[312647779,1706128256485,-500.0,0.00049315,31]
[312647780,1706128256494,-779.79,0.00049315,31]
[312647781,1706128256506,-500.0,0.00049315,31]
[312647782,1706128256515,-500.0,0.00049315,31]
[312647783,1706128256524,-1000.0,0.00049315,30]
[312647784,1706128256534,-500.0,0.00049315,31]
[312647785,1706128256542,-500.0,0.00049315,31]
[312647786,1706128256552,-500.0,0.00049315,31]
[312647787,1706128256562,-500.0,0.00049315,31]
[312647788,1706128256571,-500.0,0.00049315,31]
[312647789,1706128256581,-500.0,0.00049315,31]
[312647790,1706128256590,-500.0,0.00049315,7]
[312647791,1706128256599,-500.0,0.00049315,31]
[312647792,1706128256609,-500.0,0.00049315,31]
[312647793,1706128256618,-500.0,0.00049315,31]
[312647794,1706128256627,-1160.51,0.00049315,31]
[312647795,1706128256636,-500.0,0.00049315,31]
[312647796,1706128256645,-500.0,0.00049315,31]
[312647797,1706128256656,-2136.54283036,0.00049315,66]
[312647798,1706128256665,-500.0,0.00049315,31]
[312647799,1706128256674,-500.0,0.00049315,31]
[312647800,1706128256684,-500.0,0.00049315,31]
[312647801,1706128256693,-500.0,0.00049315,31]
[312647802,1706128256702,-500.0,0.00049315,31]
[312647803,1706128256711,-500.0,0.00049315,31]
[312647804,1706128256721,-500.0,0.00049315,31]
[312647805,1706128256730,-500.0,0.00049315,31]
[312647806,1706128256740,-500.0,0.00049315,31]
[312647807,1706128256749,-382.36778296,0.00049315,31]
[312647808,1706128256758,-500.0,0.00049315,31]
[312647809,1706128256768,-604.31129744,0.00049315,31]
[312647810,1706128256777,-500.0,0.00049315,31]
[312647811,1706128256787,-500.0,0.00049315,31]
[312647812,1706128256797,-500.0,0.00049315,31]
[312647813,1706128256806,-500.0,0.00049315,31]
[312647814,1706128256815,-500.0,0.00049315,31]
[312647815,1706128256825,-498.09094896,0.00049315,31]
[312647816,1706128256834,-500.0,0.00049315,31]
[312647817,1706128256845,-500.0,0.00049315,31]
[312647818,1706128256854,-500.0,0.00049315,31]
[312647819,1706128256863,-500.0,0.00049315,31]
[312647820,1706128256873,-500.0,0.00049315,31]
[312647821,1706128256884,-513.54,0.00049315,31]
[312647822,1706128256895,-500.0,0.00049315,7]
[312647823,1706128256905,-500.0,0.00049315,31]
[312647824,1706128256915,-500.0,0.00049315,31]
[312647825,1706128256924,-500.0,0.00049315,31]
[312647826,1706128256933,-500.0,0.00049315,31]
[312647827,1706128256943,-500.0,0.00049315,31]
[312647828,1706128256952,-500.0,0.00049315,31]
[312647829,1706128256964,-500.0,0.00049315,31]
[312647830,1706128256976,-500.0,0.00049315,31]
[312647831,1706128256987,-500.0,0.00049315,31]
[312647832,1706128256998,-500.0,0.00049315,31]
[312647833,1706128257011,-500.0,0.00049315,31]
[312647834,1706128257022,-500.0,0.00049315,31]
[312647835,1706128257033,-500.0,0.00049315,120]
[312647836,1706128257042,-500.0,0.00049315,31]
[312647837,1706128257053,-500.0,0.00049315,31]
[312647838,1706128257062,-500.0,0.00049315,31]
[312647839,1706128257073,-199.42332179,0.00049315,31]
[312647840,1706128257088,-300.57667821,0.00049315,31]
[312647841,1706128257098,-500.0,0.00049315,31]
[312647842,1706128257108,-502.21731131,0.00049315,31]
[312647843,1706128257119,-5.31687145,0.00049315,31]
[312647844,1706128257129,-500.0,0.00049315,31]
[312647845,1706128257139,-500.0,0.00049315,31]
[312647846,1706128257152,-500.0,0.00049315,31]
[312647847,1706128257161,-500.0,0.00049315,31]
[312647848,1706128257171,-500.0,0.00049315,31]
[312647849,1706128257180,-500.0,0.00049315,31]
[312647850,1706128257190,-500.0,0.00049315,31]
[312647851,1706128257199,-1022.98,0.00049315,2]
[312647852,1706128257209,-1262.33,0.00049315,31]
[312647853,1706128257218,-1250.05,0.00049315,7]
[312647854,1706128257228,-500.0,0.00049315,31]
[312647855,1706128257238,-500.0,0.00049315,31]
[312647856,1706128257247,-500.0,0.00049315,31]
[312647857,1706128257257,-500.0,0.00049315,31]
[312647858,1706128257267,-500.0,0.00049315,31]
[312647859,1706128257276,-500.0,0.00049315,31]
[312647860,1706128257286,-500.0,0.00049315,31]
[312647861,1706128257295,-500.0,0.00049315,31]
[312647862,1706128257304,-500.0,0.00049315,31]
[312647863,1706128257314,-500.0,0.00049315,31]
[312647864,1706128257324,-500.0,0.00049315,31]
[312647865,1706128257334,-539.37,0.00049315,31]
[312647866,1706128257344,-500.0,0.00049315,31]
[312647867,1706128257353,-595.21,0.00049315,31]
[312647868,1706128257362,-500.0,0.00049315,31]
[312647869,1706128257371,-500.0,0.00049315,31]
[312647870,1706128257381,-500.0,0.00049315,31]
[312647871,1706128257390,-405.90366231,0.00049315,31]
[312647872,1706128257399,-500.0,0.00049315,31]
[312647873,1706128257409,-500.0,0.00049315,31]
[312647874,1706128257418,-501.91287624,0.00049315,31]
[312647875,1706128257427,-500.0,0.00049315,31]
[312647876,1706128257438,-655.26,0.00049315,31]
[312647877,1706128257447,-500.0,0.00049315,31]
[312647878,1706128257458,-500.0,0.00049315,31]
[312647879,1706128257467,-500.0,0.00049315,31]
[312647880,1706128257477,-4492.53,0.00049315,15]
[312647881,1706128257486,-500.0,0.00049315,31]
[312647882,1706128257495,-500.0,0.00049315,31]
[312647883,1706128257504,-500.0,0.00049315,31]
[312647884,1706128257514,-500.0,0.00049315,31]
[312647885,1706128257523,-500.0,0.00049315,31]
[312647886,1706128257532,-500.0,0.00049315,31]
[312647887,1706128257544,-584.06,0.00049315,31]
[312647888,1706128257555,-500.0,0.00049315,31]
[312647889,1706128257566,-572.55,0.00049315,31]
[312647890,1706128257575,-500.0,0.00049315,31]
[312647891,1706128257585,-500.0,0.00049315,31]
[312647892,1706128257595,-501.90446459,0.00049315,31]
[312647893,1706128257605,-248.23540713,0.00049315,31]
[312647894,1706128257615,-500.0,0.00049315,31]
[312647895,1706128257625,-2076.04,0.00049315,31]
[312647896,1706128257636,-500.0,0.00049315,31]
[312647897,1706128257647,-500.0,0.00049315,31]
[312647898,1706128257657,-500.0,0.00049315,31]
[312647899,1706128257666,-500.0,0.00049315,31]
[312647900,1706128257676,-500.0,0.00049315,31]
[312647901,1706128257685,-764.82,0.00049315,31]
[312647902,1706128257695,-506.93217147,0.00049315,31]
[312647903,1706128257705,-500.0,0.00049315,31]
[312647904,1706128257714,-500.0,0.00049315,31]
[312647905,1706128257724,-500.0,0.00049315,31]
[312647906,1706128257734,-500.0,0.00049315,31]
[312647907,1706128257743,-500.0,0.00049315,31]
[312647908,1706128257753,-507.40351964,0.00049315,31]
[312647909,1706128257763,-500.0,0.00049315,31]
[312647910,1706128257772,-4140.69,0.00049315,31]
[312647911,1706128257782,-500.0,0.00049315,31]
[312647912,1706128257793,-517.91046516,0.00049315,31]
[312647913,1706128257803,-500.0,0.00049315,31]
[312647914,1706128257812,-500.0,0.00049315,31]
[312647915,1706128257823,-513.14,0.00049315,31]
[312647916,1706128257832,-559.0134342,0.00049315,31]
[312647917,1706128257843,-1264.35,0.00049315,31]
[312647918,1706128257855,-500.0,0.00049315,31]
[312647919,1706128257864,-500.0,0.00049315,31]
[312647920,1706128257874,-500.0,0.00049315,31]
[312647921,1706128257884,-500.0,0.00049315,31]
[312647922,1706128257893,-1248.46,0.00049315,31]
[312647923,1706128257904,-500.0,0.00049315,31]
[312647924,1706128257914,-500.0,0.00049315,31]
[312647925,1706128257924,-500.0,0.00049315,31]
[312647926,1706128257935,-3174.67,0.00049315,31]
[312647927,1706128257946,-500.0,0.00049315,31]
[312647928,1706128257956,-500.0,0.00049315,31]
[312647929,1706128257965,-500.0,0.00049315,31]
[312647930,1706128257975,-500.0,0.00049315,31]
[312647931,1706128257986,-500.0,0.00049315,31]
[312647932,1706128257995,-792.27,0.00049315,31]
[312647933,1706128258005,-623.86,0.00049315,31]
[312647934,1706128258014,-1988.28,0.00049315,2]
[312647935,1706128258023,-500.0,0.00049315,31]
[312647936,1706128258032,-500.0,0.00049315,31]
[312647937,1706128258042,-554.22,0.00049315,31]
[312647938,1706128258053,-500.0,0.00049315,31]
[312647939,1706128258063,-9485.31,0.00049315,31]
[312647940,1706128258073,-1163.88,0.00049315,31]
[312647941,1706128258083,-580.14,0.00049315,31]
[312647942,1706128258094,-500.0,0.00049315,31]
[312647943,1706128258103,-1084.88,0.00049315,31]
[312647944,1706128258112,-500.0,0.00049315,31]
[312647945,1706128258121,-500.0,0.00049315,31]
[312647946,1706128258131,-500.0,0.00049315,31]
[312647947,1706128258141,-500.0,0.00049315,31]
[312647948,1706128258156,-707.65,0.00049315,31]
[312647949,1706128258165,-500.0,0.00049315,31]
[312647950,1706128258174,-500.0,0.00049315,31]
[312647951,1706128258184,-520.07,0.00049315,31]
[312647952,1706128258195,-500.0,0.00049315,31]
[312647953,1706128258204,-500.0,0.00049315,31]
[312647954,1706128258214,-500.0,0.00049315,31]
[312647955,1706128258225,-500.0,0.00049315,31]
[312647956,1706128258234,-510.13280221,0.00049315,31]
[312647957,1706128258243,-500.0,0.00049315,31]
[312647958,1706128258253,-535.16,0.00049315,31]
[312647959,1706128258262,-500.0,0.00049315,31]
[312647960,1706128258271,-500.0,0.00049315,31]
[312647961,1706128258282,-511.26,0.00049315,31]
[312647962,1706128258292,-500.0,0.00049315,31]
[312647963,1706128258302,-537.28,0.00049315,31]
[312647964,1706128258312,-500.0,0.00049315,31]
[312647965,1706128258321,-1985.72,0.00049315,31]
[312647966,1706128258331,-619.44,0.00049315,31]
[312647967,1706128258341,-500.0,0.00049315,31]
[312647968,1706128258351,-738.24,0.00049315,31]
[312647969,1706128258361,-945.31,0.00049315,31]
[312647970,1706128258371,-1338.34,0.00049315,31]
[312647971,1706128258382,-500.0,0.00049315,31]
[312647972,1706128258391,-500.0,0.00049315,31]
[312647973,1706128258400,-500.0,0.00049315,31]
[312647974,1706128258410,-500.0,0.00049315,31]
[312647975,1706128258420,-545.7182635,0.00049315,31]
[312647976,1706128258430,-624.73,0.00049315,31]
[312647977,1706128258440,-572.17,0.00049315,31]
[312647978,1706128258450,-658.90586705,0.00049315,5]
[312647979,1706128259050,-500.0,0.00028845,2]
[312647980,1706128259060,-500.0,0.00028845,2]
[312647981,1706128259069,-500.0,0.00028845,2]
[312647982,1706128259078,-500.0,0.00028845,2]
[312647983,1706128259087,-500.0,0.00028845,2]
[312647984,1706128259097,-164.0,0.00035,2]
[312647985,1706128259106,-7750.11599353,0.00039558,2]
[312647986,1706128259115,-13076.74621595,0.00044884,21]
[312647987,1706128259125,-338.78319536,0.000489,2]
[312647988,1706128259135,-5104.89413295,0.00049315,5]
[312647989,1706128259145,-563.53,0.00049315,31]
[312647990,1706128259156,-760.65,0.00049315,31]
[312647991,1706128259165,-500.0,0.00049315,31]
[312647992,1706128259173,-500.0,0.00049315,31]
[312647993,1706128259184,-500.0,0.00049315,31]
[312647994,1706128259193,-743.05,0.00049315,31]
[312647995,1706128259202,-500.0,0.00049315,31]
[312647996,1706128259211,-590.53,0.00049315,31]
[312647997,1706128259221,-733.59,0.00049315,31]
[312647998,1706128259232,-500.0,0.00049315,31]
[312647999,1706128259241,-500.0,0.00049315,31]
[312648000,1706128259251,-1352.16,0.00049315,31]
[312648001,1706128259260,-500.0,0.00049315,31]
[312648002,1706128259269,-530.25119497,0.00049315,31]
[312648003,1706128259282,-849.73880503,0.00049315,31]
[312648004,1706128259292,-237.44817045,0.00049315,31]
[312648005,1706128259301,-500.0,0.00049315,31]
[312648006,1706128259310,-283.13793181,0.00049315,31]
[312648007,1706128259323,-216.86206819,0.00049315,31]
[312648008,1706128259333,-500.0,0.00049315,31]
[312648009,1706128259342,-500.0,0.00049315,31]
[312648010,1706128259352,-500.0,0.00049315,31]
[312648011,1706128259362,-24.52142986,0.00049315,31]
[312648012,1706128259373,-475.47857014,0.00049315,31]
[312648013,1706128259383,-216.28147919,0.00049315,31]
[312648014,1706128259393,-93.93899834,0.00049315,31]
[312648015,1706128259405,-423.19100166,0.00049315,31]
[312648016,1706128259414,-3861.73,0.00049315,5]
[312648017,1706128259423,-334.97598066,0.00049315,31]
[312648018,1706128259433,-380.10301768,0.00049315,31]
[312648019,1706128259445,-119.89698232,0.00049315,31]
[312648020,1706128259454,-511.45875038,0.00049315,31]
[312648021,1706128259464,-500.0,0.00049315,31]
[312648022,1706128259473,-663.79,0.00049315,31]
[312648023,1706128259484,-520.18,0.00049315,31]
[312648024,1706128259493,-2676.59,0.00049315,31]
[312648025,1706128259502,-543.87830028,0.00049315,31]
[312648026,1706128259511,-756.13,0.00049315,31]
[312648027,1706128259520,-500.0,0.00049315,31]
[312648028,1706128259529,-500.0,0.00049315,31]
[312648029,1706128259538,-620.88,0.00049315,31]
[312648030,1706128259548,-500.0,0.00049315,31]
[312648031,1706128259558,-576.81,0.00049315,31]
[312648032,1706128259567,-500.0,0.00049315,31]
[312648033,1706128259577,-500.0,0.00049315,31]
[312648034,1706128259587,-71.09725521,0.00049315,31]
[312648035,1706128259600,-455.22534615,0.00049315,31]
[312648036,1706128259609,-191.69465394,0.00049315,31]
[312648037,1706128259735,-275.8930555,0.000229,2]
[312648038,1706128259744,-500.0,0.00028845,2]
[312648039,1706128259754,-308.30534606,0.00049315,31]
[312648040,1706128259763,-2341.82,0.00049315,31]
[312648041,1706128259772,-371.88891365,0.00049315,31]
[312648042,1706128259784,-128.11108635,0.00049315,31]
[312648043,1706128259923,-500.0,0.00049315,31]
[312648044,1706128259935,-1293.03,0.00049315,31]
[312648045,1706128259944,-729.62404795,0.00049315,31]
[312648046,1706128259956,-3.85595205,0.00049315,31]
[312648047,1706128259965,-745.27,0.00049315,31]
[312648048,1706128259974,-33.11384003,0.00049315,31]
[312648049,1706128259985,-982.26615997,0.00049315,31]
[312648050,1706128259995,-517.56053213,0.00049315,31]
[312648051,1706128260004,-739.33,0.00049315,31]
[312648052,1706128260013,-935.14,0.00049315,31]
[312648053,1706128260022,-500.0,0.00049315,31]
[312648054,1706128260032,-500.0,0.00049315,31]
[312648055,1706128260042,-520.35189179,0.00049315,31]
[312648056,1706128260051,-500.0,0.00049315,31]
[312648057,1706128260061,-500.0,0.00049315,31]
[312648058,1706128260070,-500.0,0.00049315,31]
[312648059,1706128260080,-500.0,0.00049315,31]
[312648060,1706128260090,-807.81921229,0.00049315,31]
[312648061,1706128260102,-794.66078771,0.00049315,31]
[312648062,1706128260111,-27.24665251,0.00049315,31]
[312648063,1706128260122,-688.57565016,0.00049315,31]
[312648064,1706128260140,-1244.13490356,0.00049315,31]
[312648065,1706128260156,-801.41279377,0.00049315,31]
[312648066,1706128260166,-500.0,0.00049315,31]
[312648067,1706128260175,-2254.41,0.00049315,31]
[312648068,1706128260184,-930.55,0.00049315,31]
[312648069,1706128260195,-500.0,0.00049315,31]
[312648070,1706128260205,-697.84,0.00049315,31]
[312648071,1706128260215,-5527.21,0.00049315,31]
[312648072,1706128260225,-991.82,0.00049315,31]
[312648073,1706128260235,-617.84,0.00049315,31]
[312648074,1706128260245,-375.0,0.00049315,120]
[312648075,1706128260255,-1221.38,0.00049315,31]
[312648076,1706128260264,-554.15,0.00049315,31]
[312648077,1706128260273,-500.0,0.00049315,31]
[312648078,1706128260283,-5713.11,0.00049315,31]
[312648079,1706128260292,-533.0,0.00049315,31]
[312648080,1706128260301,-674.42,0.00049315,31]
[312648081,1706128260311,-500.0,0.00049315,31]
[312648082,1706128260321,-500.0,0.00049315,31]
[312648083,1706128260330,-500.0,0.00049315,31]
[312648084,1706128260340,-500.0,0.00049315,31]
[312648085,1706128260350,-500.0,0.00049315,31]
[312648086,1706128260359,-500.0,0.00049315,31]
[312648087,1706128260368,-633.02,0.00049315,31]
[312648088,1706128260378,-2367.66,0.00049315,31]
[312648089,1706128260387,-784.66,0.00049315,31]
[312648090,1706128260397,-500.0,0.00049315,31]
[312648091,1706128260406,-1795.4,0.00049315,31]
[312648092,1706128260416,-1360.52,0.00049315,31]
[312648093,1706128260426,-500.0,0.00049315,31]
[312648094,1706128260435,-500.0,0.00049315,31]
[312648095,1706128260444,-250.0,0.00049315,31]
[312648096,1706128260453,-5153.74,0.00049315,31]
[312648097,1706128260462,-725.21,0.00049315,31]
[312648098,1706128260471,-755.34,0.00049315,31]
[312648099,1706128260481,-500.0,0.00049315,31]
[312648100,1706128260490,-560.2,0.00049315,31]
[312648101,1706128260499,-500.0,0.00049315,31]
[312648102,1706128260508,-505.14301159,0.00049315,31]
[312648103,1706128260518,-722.75,0.00049315,31]
[312648104,1706128260527,-748.58,0.00049315,31]
[312648105,1706128260538,-502.55,0.00049315,31]
[312648106,1706128260549,-500.0,0.00049315,31]
[312648107,1706128260558,-1316.47,0.00049315,31]
[312648108,1706128260568,-635.81,0.00049315,31]
[312648109,1706128260577,-500.0,0.00049315,31]
[312648110,1706128260586,-500.0,0.00049315,31]
[312648111,1706128260596,-1091.66,0.00049315,31]
[312648112,1706128260606,-500.0,0.00049315,31]
[312648113,1706128260616,-500.0,0.00049315,31]
[312648114,1706128260625,-500.0,0.00049315,31]
[312648115,1706128260636,-1171.21,0.00049315,31]
[312648116,1706128260646,-500.0,0.00049315,31]
[312648117,1706128260655,-705.55,0.00049315,31]
[312648118,1706128260665,-500.0,0.00049315,31]
[312648119,1706128260674,-740.04,0.00049315,31]
[312648120,1706128260683,-500.0,0.00049315,31]
[312648121,1706128260693,-1344.44,0.00049315,31]
[312648122,1706128260702,-1059.45,0.00049315,31]
[312648123,1706128260711,-500.0,0.00049315,31]
[312648124,1706128260720,-279.51904402,0.00049315,31]
[312648125,1706128260730,-500.0,0.00049315,31]
[312648126,1706128260739,-500.0,0.00049315,31]
[312648127,1706128260750,-500.0,0.00049315,31]
[312648128,1706128260759,-500.0,0.00049315,31]
[312648129,1706128260768,-500.0,0.00049315,31]
[312648130,1706128260778,-500.0,0.00049315,31]
[312648131,1706128260787,-704.13,0.00049315,31]
[312648132,1706128260796,-764.12,0.00049315,31]
[312648133,1706128260805,-480.4003227,0.00049315,31]
[312648134,1706128260819,-323.6696773,0.00049315,31]
[312648135,1706128260828,-500.0,0.00049315,31]
[312648136,1706128260838,-500.0,0.00049315,31]
[312648137,1706128260847,-1070.6183227,0.00049315,31]
[312648138,1706128260859,-2268.7016773,0.00049315,31]
[312648139,1706128260868,-560.33,0.00049315,31]
[312648140,1706128260877,-775.49,0.00049315,31]
[312648141,1706128260887,-362.4783227,0.00049315,31]
[312648142,1706128260898,-137.5216773,0.00049315,31]
[312648143,1706128260907,-204.6353515,0.00049315,31]
[312648144,1706128260927,-500.0,0.00028845,2]
[312648145,1706128260938,-295.3646485,0.00049315,31]
[312648146,1706128260947,-209.64574191,0.00049315,31]
[312648147,1706128260965,-322.86425809,0.00049315,31]
[312648148,1706128260976,-407.20698957,0.00049315,31]
[312648149,1706128260990,-92.79301043,0.00049315,31]
[312648150,1706128261000,-500.0,0.00049315,31]
[312648151,1706128261009,-89.11698957,0.00049315,31]
[312648152,1706128261022,-410.88301043,0.00049315,31]
[312648153,1706128261032,-76.52715447,0.00049315,31]
[312648154,1706128261053,-429.0,0.00049315,31]
[312648155,1706128261066,-227.66284553,0.00049315,31]
[312648156,1706128261076,-500.0,0.00049315,31]
[312648157,1706128261085,-748.05,0.00049315,31]
[312648158,1706128261095,-633.83,0.00049315,31]
[312648159,1706128261105,-333.21058471,0.00049315,31]
[312648160,1706128261117,-184.21941529,0.00049315,31]
[312648161,1706128261127,-500.0,0.00049315,31]
[312648162,1706128261139,-500.0,0.00049315,31]
[312648163,1706128261150,-603.04,0.00049315,31]
[312648164,1706128261160,-500.0,0.00049315,31]
[312648165,1706128261170,-824.2,0.00049315,31]
[312648166,1706128261179,-500.0,0.00049315,31]
[312648167,1706128261189,-500.0,0.00049315,31]
[312648168,1706128261199,-685.23,0.00049315,31]
[312648169,1706128261209,-630.86,0.00049315,31]
[312648170,1706128261219,-500.0,0.00049315,31]
[312648171,1706128261229,-500.0,0.00049315,31]
[312648172,1706128261239,-500.0,0.00049315,31]
[312648173,1706128261248,-509.91,0.00049315,31]
[312648174,1706128261258,-774.22,0.00049315,31]
[312648175,1706128261267,-500.0,0.00049315,31]
[312648176,1706128261277,-500.0,0.00049315,31]
[312648177,1706128261286,-2444.99,0.00049315,31]
[312648178,1706128261296,-500.0,0.00049315,31]
[312648179,1706128261305,-500.0,0.00049315,14]
[312648180,1706128261315,-567.96,0.00049315,31]
[312648181,1706128261324,-500.0,0.00049315,31]
[312648182,1706128261334,-1505.77,0.00049315,31]
[312648183,1706128261343,-501.6,0.00049315,31]
[312648184,1706128261353,-500.0,0.00049315,31]
[312648185,1706128261363,-608.31,0.00049315,31]
[312648186,1706128261372,-500.0,0.00049315,31]
[312648187,1706128261381,-500.0,0.00049315,31]
[312648188,1706128261390,-658.63,0.00049315,31]
[312648189,1706128261399,-762.52,0.00049315,31]
[312648190,1706128261409,-524.68,0.00049315,31]
[312648191,1706128261419,-500.0,0.00049315,31]
[312648192,1706128261428,-1413.16,0.00049315,31]
[312648193,1706128261437,-535.38,0.00049315,31]
[312648194,1706128261447,-671.74,0.00049315,31]
[312648195,1706128261457,-701.23,0.00049315,31]
[312648196,1706128261466,-676.5,0.00049315,31]
[312648197,1706128261475,-500.0,0.00049315,31]
[312648198,1706128261484,-799.25,0.00049315,31]
[312648199,1706128261493,-500.0,0.00049315,31]
[312648200,1706128261503,-500.0,0.00049315,31]
[312648201,1706128261513,-3780.71,0.00049315,31]
[312648202,1706128261522,-912.73,0.00049315,31]
[312648203,1706128261532,-692.58,0.00049315,31]
[312648204,1706128261541,-500.0,0.00049315,31]
[312648205,1706128261550,-507.78,0.00049315,31]
[312648206,1706128261560,-500.0,0.00049315,31]
[312648207,1706128261569,-791.72,0.00049315,31]
[312648208,1706128261578,-384.39295075,0.00049315,31]
[312648209,1706128261587,-500.0,0.00049315,31]
[312648210,1706128261598,-749.11,0.00049315,31]
[312648211,1706128261607,-728.83,0.00049315,31]
[312648212,1706128261617,-897.1,0.00049315,31]
[312648213,1706128261626,-500.0,0.00049315,31]
[312648214,1706128261635,-674.85,0.00049315,31]
[312648215,1706128261645,-555.63,0.00049315,31]
[312648216,1706128261655,-292.42295583,0.00049315,31]
[312648217,1706128262324,-207.57704417,0.00049315,31]
[312648218,1706128262335,-500.0,0.00049315,31]
[312648219,1706128262346,-572.99,0.00049315,31]
[312648220,1706128262355,-500.0,0.00049315,31]
[312648221,1706128262365,-500.0,0.00049315,31]
[312648222,1706128262374,-500.0,0.00049315,31]
[312648223,1706128262384,-500.0,0.00049315,31]
[312648224,1706128262393,-500.0,0.00049315,31]
[312648225,1706128262402,-839.02245466,0.00049315,31]
[312648226,1706128262748,-500.0,0.00028845,2]
[312648227,1706128262759,-500.0,0.00028845,2]